bitfinex/quotes_BTCUSD_20241229
["timestamp","ask_amount","ask_price","bid_price","bid_amount"]
[1735510466647,0.00118209,93490.0,93474.0,0.12016768]
[1735510466848,1.375075,93489.0,93474.0,0.12016768]
[1735510467053,0.00118209,93488.0,93474.0,0.12016768]
[1735510467511,0.00118209,93490.0,93474.0,0.12016768]
[1735510467713,0.19023635,93488.0,93474.0,0.12016768]
[1735510467879,0.00118209,93487.0,93474.0,0.12016768]
[1735510468077,0.00118209,93487.0,93474.0,0.12116768]
[1735510468506,0.05032631,93487.0,93474.0,0.12016768]
[1735510469293,0.05032631,93487.0,93474.0,0.12216768]
[1735510470242,1.375075,93486.0,93474.0,0.12216768]
[1735510470568,0.00118209,93485.0,93474.0,0.12216768]
[1735510470907,1.375075,93484.0,93474.0,0.12216768]
[1735510471101,0.00118209,93483.0,93474.0,0.12016768]
[1735510471304,1.37625709,93483.0,93474.0,0.12016768]
[1735510471500,0.1426281,93484.0,93474.0,0.12216768]
[1735510471767,1.37625709,93483.0,93474.0,0.12016768]
[1735510472046,0.09508163,93479.0,93474.0,0.12316768]
[1735510472286,0.00118209,93478.0,93474.0,0.12316768]
[1735510473026,0.09508163,93475.0,93474.0,0.12116768]
[1735510473430,0.09508163,93475.0,93474.0,0.04186768]
[1735510474733,0.09508163,93475.0,93474.0,0.04686768]
[1735510474949,0.09508163,93475.0,93474.0,0.28702785]
[1735510475153,0.19023635,93477.0,93474.0,0.15762785]
[1735510475324,0.19023635,93477.0,93476.0,0.2]
[1735510475529,0.19023635,93477.0,93476.0,0.43238632]
[1735510475736,0.19023635,93477.0,93476.0,0.48190619]
[1735510476148,0.06213635,93477.0,93476.0,0.48090619]
[1735510476756,0.0001706,93490.0,93478.0,0.1]
[1735510476958,0.0001706,93490.0,93479.0,0.18575585]
[1735510477163,0.0001706,93490.0,93481.0,0.0487]
[1735510477338,0.0001706,93490.0,93483.0,0.0807]
[1735510477540,0.0001706,93490.0,93484.0,0.10505585]
[1735510477747,0.0001706,93490.0,93485.0,0.0807]
[1735510477945,0.0001706,93490.0,93486.0,0.10398632]
[1735510478349,0.0001706,93490.0,93487.0,0.00106947]
[1735510478519,0.0001706,93490.0,93488.0,0.10398632]
[1735510478719,0.0001706,93490.0,93489.0,0.00106947]
[1735510478964,0.0001706,93490.0,93489.0,0.10505579]
[1735510480896,0.04245141,93500.0,93489.0,0.10505579]
[1735510481258,0.04245141,93500.0,93490.0,0.10398632]
[1735510481465,0.04245141,93500.0,93490.0,0.1050558]
[1735510482387,0.04245141,93500.0,93490.0,0.1140558]
[1735510484405,0.04245141,93500.0,93490.0,0.1050558]
[1735510484525,0.04245141,93500.0,93490.0,0.1140558]
[1735510484724,0.04245141,93500.0,93490.0,0.1050558]
[1735510485187,0.04245141,93500.0,93490.0,0.1170558]
[1735510485627,0.002,93507.0,93491.0,0.01977558]
[1735510485859,0.002,93507.0,93491.0,0.1237619]
[1735510486091,0.042451,93506.0,93491.0,0.1237619]
[1735510486881,0.042451,93506.0,93491.0,0.001]
[1735510487084,0.07808209,93505.0,93491.0,0.001]
[1735510487673,0.07808209,93505.0,93491.0,0.007]
[1735510488149,0.07808209,93505.0,93491.0,0.001]
[1735510488401,0.07808209,93505.0,93491.0,0.007]
[1735510488611,0.07808209,93505.0,93485.0,0.0807]
[1735510488737,0.09678014,93505.0,93491.0,0.002]
[1735510488938,0.07808209,93505.0,93491.0,0.008]
[1735510489536,0.07808209,93505.0,93491.0,0.006]
[1735510489733,0.07808209,93505.0,93491.0,0.008]
[1735510489849,0.01349826,93512.0,93491.0,0.008]
[1735510490057,1.375075,93511.0,93491.0,0.008]
[1735510490349,0.042878,93504.0,93491.0,0.006]
[1735510490552,1.375075,93503.0,93476.0,0.0813]
[1735510490763,0.042878,93504.0,93491.0,0.005]
[1735510491197,0.042878,93504.0,93479.0,0.00106951]
[1735510491397,0.042878,93504.0,93491.0,0.006]
[1735510491795,0.042878,93504.0,93491.0,0.007]
[1735510492243,0.042878,93504.0,93491.0,0.001]
[1735510492404,0.042878,93504.0,93484.0,0.0813]
[1735510492606,0.042878,93504.0,93491.0,0.001]
[1735510493013,0.042878,93504.0,93491.0,0.002]
[1735510493366,0.042878,93504.0,93491.0,0.001]
[1735510494084,0.042878,93504.0,93491.0,0.0010853]
[1735510494295,0.042878,93504.0,93491.0,8.53e-05]
[1735510495457,0.042878,93504.0,93491.0,0.00822383]
[1735510495908,0.042878,93504.0,93491.0,8.53e-05]
[1735510496082,0.042878,93504.0,93491.0,0.0010853]
[1735510497808,0.042878,93504.0,93491.0,0.0020853]
[1735510498009,0.042878,93504.0,93491.0,8.53e-05]
[1735510498507,0.042878,93504.0,93491.0,0.0010853]
[1735510499042,0.042878,93504.0,93491.0,8.53e-05]
[1735510499447,0.042878,93504.0,93491.0,0.0020853]
[1735510500753,0.09509471,93502.0,93491.0,8.53e-05]
[1735510501167,0.09509471,93502.0,93491.0,0.0010853]
[1735510501379,0.09509471,93502.0,93491.0,8.53e-05]
[1735510501751,0.09509471,93502.0,93491.0,0.0030853]
[1735510501951,0.09509471,93502.0,93491.0,8.53e-05]
[1735510502214,0.09509471,93502.0,93491.0,0.0010853]
[1735510502448,0.09509471,93502.0,93491.0,0.0050853]
[1735510502576,0.09509471,93502.0,93491.0,8.53e-05]
[1735510503026,0.09509471,93501.0,93491.0,8.53e-05]
[1735510504074,0.09509471,93499.0,93491.0,8.53e-05]
[1735510504243,0.09509471,93499.0,93491.0,0.0020853]
[1735510504533,0.09509471,93499.0,93491.0,8.53e-05]
[1735510504801,0.09509471,93499.0,93491.0,0.0020853]
[1735510505020,0.09509471,93499.0,93491.0,0.00813853]
[1735510505223,0.09509471,93500.0,93491.0,0.00813853]
[1735510505433,0.09509471,93500.0,93491.0,0.01113853]
[1735510506318,0.09509471,93500.0,93491.0,0.003]
[1735510506519,0.09509471,93499.0,93491.0,0.003]
[1735510506637,0.09509471,93499.0,93491.0,0.004]
[1735510507111,0.09509471,93499.0,93491.0,0.003]
[1735510507517,0.09509471,93499.0,93491.0,0.0030853]
[1735510507687,0.09509471,93500.0,93491.0,8.53e-05]
[1735510508266,0.09509471,93500.0,93491.0,0.0030853]
[1735510508413,0.09509471,93499.0,93491.0,8.53e-05]
[1735510508650,0.09509471,93499.0,93491.0,0.0030853]
[1735510509056,0.09509471,93499.0,93491.0,8.53e-05]
[1735510509455,0.09509471,93499.0,93491.0,0.0030853]
[1735510509639,0.09509471,93498.0,93491.0,0.0030853]
[1735510510419,0.09509471,93498.0,93491.0,0.0040853]
[1735510510877,0.09509471,93498.0,93491.0,0.0010853]
[1735510511090,0.09509471,93498.0,93491.0,0.0040853]
[1735510511529,0.09509471,93498.0,93491.0,0.0010853]
[1735510511664,0.09509471,93498.0,93491.0,0.0050853]
[1735510511860,0.09509471,93498.0,93491.0,0.0040853]
[1735510512381,0.09509471,93496.0,93491.0,0.0050853]
[1735510512541,0.09509471,93496.0,93491.0,0.0010853]
[1735510512764,0.09509471,93496.0,93491.0,0.0040853]
[1735510512960,0.09509471,93496.0,93491.0,0.0030853]
[1735510513859,0.09509471,93494.0,93491.0,0.0030853]
[1735510514060,0.09509471,93494.0,93491.0,8.53e-05]
[1735510514471,0.09509471,93494.0,93491.0,0.0030853]
[1735510515238,0.09509471,93494.0,93491.0,8.53e-05]
[1735510515784,0.09509471,93493.0,93491.0,0.0060853]
[1735510516284,0.09509471,93493.0,93491.0,0.0050853]
[1735510516701,0.09509471,93493.0,93491.0,0.0060853]
[1735510516829,0.14265113,93493.0,93491.0,0.0060853]
[1735510517231,0.14265113,93493.0,93491.0,8.53e-05]
[1735510517520,0.14265113,93493.0,93491.0,0.0050853]
[1735510517938,0.18984285,93493.0,93491.0,8.53e-05]
[1735510518122,0.18984285,93493.0,93491.0,0.0020853]
[1735510518729,0.18984285,93493.0,93491.0,0.0030853]
[1735510519084,0.23776556,93493.0,93491.0,0.0020853]
[1735510519982,0.048,93497.0,93491.0,0.0020853]
[1735510520919,0.048,93497.0,93491.0,8.53e-05]
[1735510521991,0.049,93497.0,93491.0,8.53e-05]
[1735510522191,0.33428541,93497.0,93491.0,8.53e-05]
[1735510522411,0.10398632,93496.0,93491.0,8.53e-05]
[1735510523803,0.38927173,93496.0,93491.0,0.0010853]
[1735510524600,0.38927173,93496.0,93491.0,8.53e-05]
[1735510525847,0.10498632,93496.0,93491.0,8.53e-05]
[1735510526045,0.15156124,93497.0,93491.0,8.53e-05]
[1735510526683,0.001,93496.0,93491.0,8.53e-05]
[1735510527086,0.23829324,93493.0,93491.0,8.53e-05]
[1735510527614,0.255073,93493.0,93491.0,8.53e-05]
[1735510528351,0.0799,93492.0,93491.0,0.0010853]
[1735510530057,0.0799,93492.0,93491.0,8.53e-05]
[1735510530222,0.0799,93492.0,93491.0,0.0010853]
[1735510530431,0.6203292,93492.0,93491.0,0.0010853]
[1735510531165,0.6203292,93492.0,93474.0,0.03695298]
[1735510531574,0.6203292,93492.0,93491.0,8.53e-05]
[1735510531951,0.6213292,93492.0,93491.0,8.53e-05]
[1735510532394,0.6233292,93492.0,93491.0,8.53e-05]
[1735510532886,0.6213292,93492.0,93491.0,8.53e-05]
[1735510533323,0.6243292,93492.0,93491.0,8.53e-05]
[1735510533498,0.6233292,93492.0,93491.0,8.53e-05]
[1735510533706,0.5404292,93488.0,93474.0,0.03405949]
[1735510533903,0.5404292,93487.0,93474.0,0.03405949]
[1735510534109,0.5404292,93487.0,93475.0,0.0777]
[1735510534917,0.1428268,93478.0,93475.0,0.0777]
[1735510535997,0.1428268,93479.0,93475.0,0.0777]
[1735510536409,0.1428268,93479.0,93475.0,0.0787]
[1735510537016,0.1428268,93479.0,93475.0,0.0777]
[1735510537167,0.1428268,93476.0,93475.0,0.0777]
[1735510537576,0.1428268,93476.0,93475.0,0.0817]
[1735510538257,0.1428268,93476.0,93475.0,0.0777]
[1735510538461,0.1428268,93478.0,93475.0,0.0777]
[1735510538658,0.1428268,93478.0,93475.0,0.0827]
[1735510538896,0.1428268,93478.0,93475.0,0.0837]
[1735510539288,0.1428268,93478.0,93475.0,0.0827]
[1735510539898,0.1428268,93478.0,93475.0,0.07431365]
[1735510540092,0.1428268,93478.0,93475.0,0.07036173]
[1735510540293,0.1428268,93478.0,93475.0,0.06536173]
[1735510540464,0.1428268,93479.0,93475.0,0.06936173]
[1735510540902,0.1428268,93479.0,93475.0,0.005]
[1735510541229,0.1428268,93479.0,93475.0,0.001]
[1735510541659,0.1596071,93479.0,93475.0,0.00029172]
[1735510542309,0.1596071,93479.0,93475.0,0.00129172]
[1735510542757,0.1596071,93479.0,93475.0,0.00029172]
[1735510542968,0.19043574,93478.0,93475.0,0.00029172]
[1735510543382,0.19043574,93478.0,93474.0,0.03405949]
[1735510543793,0.20821604,93479.0,93474.0,0.03405949]
[1735510544270,0.19143574,93479.0,93474.0,0.03405949]
[1735510544627,0.142748,93477.0,93474.0,0.03405949]
[1735510547919,0.142748,93475.0,93474.0,0.03405949]
[1735510549041,0.00671242,93475.0,93474.0,0.03405949]
[1735510549916,0.00671242,93475.0,93474.0,0.03505949]
[1735510552411,0.19714816,93475.0,93474.0,0.03505949]
[1735510553615,0.00671242,93475.0,93474.0,0.03505949]
[1735510557296,0.10185777,93475.0,93474.0,0.03505949]
[1735510558106,0.00671242,93475.0,93474.0,0.03505949]
[1735510559895,0.00671242,93475.0,93474.0,0.02987888]
[1735510560095,0.00671242,93475.0,93474.0,0.02647151]
[1735510562666,0.19060634,93477.0,93474.0,0.02647151]
[1735510562864,0.00671188,93475.0,93474.0,0.02647151]
[1735510563613,0.00671188,93475.0,93474.0,0.02547151]
[1735510563879,0.14956157,93475.0,93474.0,0.02547151]
[1735510564594,0.14956157,93475.0,93474.0,0.02647151]
[1735510564972,0.00671188,93475.0,93474.0,0.02647151]
[1735510565753,0.00671188,93475.0,93474.0,0.02947151]
[1735510566191,0.00688248,93475.0,93474.0,0.02947151]
[1735510566387,0.00688248,93475.0,93474.0,0.02847151]
[1735510566587,0.00688248,93475.0,93474.0,0.03747151]
[1735510566913,0.00788248,93475.0,93474.0,0.03747151]
[1735510567117,0.00688248,93475.0,93474.0,0.02847151]
[1735510567341,0.00788248,93475.0,93474.0,0.03547151]
[1735510567972,0.00788248,93475.0,93474.0,0.03247151]
[1735510568153,0.00688248,93475.0,93474.0,0.02547151]
[1735510568400,0.00688248,93475.0,93474.0,0.02747151]
[1735510568878,0.00688248,93475.0,93474.0,0.02547151]
[1735510569077,0.00788248,93475.0,93474.0,0.03447151]
[1735510569871,0.00688248,93475.0,93474.0,0.02747151]
[1735510570261,0.00788248,93475.0,93474.0,0.03347151]
[1735510570467,0.24592716,93475.0,93474.0,0.03347151]
[1735510571533,0.00788248,93475.0,93474.0,0.03347151]
[1735510579465,1.5041334,93475.0,93474.0,0.03347151]
[1735510580298,1.52091563,93475.0,93474.0,0.03347151]
[1735510580476,1.52091563,93475.0,93474.0,0.02747151]
[1735510580477,2.06034483,93475.0,93474.0,0.02747151]
[1735510580713,2.06034483,93475.0,93474.0,0.02547151]
[1735510581111,2.10904483,93475.0,93474.0,0.02547151]
[1735510581510,2.10333295,93475.0,93474.0,0.02547151]
[1735510582151,2.10433295,93475.0,93474.0,0.02547151]
[1735510582355,2.10333295,93475.0,93474.0,0.02547151]
[1735510583657,2.11033295,93475.0,93474.0,0.02647151]
[1735510583856,2.10233295,93475.0,93474.0,0.02547151]
[1735510584060,2.10633295,93475.0,93474.0,0.02547151]
[1735510584296,2.11533295,93475.0,93474.0,0.02647151]
[1735510584632,2.11133295,93475.0,93474.0,0.02647151]
[1735510585040,2.11533295,93475.0,93474.0,0.02647151]
[1735510587517,0.74025795,93475.0,93474.0,0.02647151]
[1735510587800,2.11533295,93475.0,93474.0,0.02647151]
[1735510589908,2.31533295,93475.0,93474.0,0.02647151]
[1735510590316,0.2764,93471.0,93464.0,8.54e-05]
[1735510590491,1.73299136,93471.0,93464.0,8.54e-05]
[1735510590697,1.73388938,93471.0,93464.0,8.54e-05]
[1735510591698,1.73688938,93471.0,93464.0,8.54e-05]
[1735510592046,1.74388938,93471.0,93470.0,0.0010854]
[1735510592516,2.06403536,93471.0,93470.0,0.0010854]
[1735510592724,2.06363636,93471.0,93470.0,0.0010854]
[1735510593578,1.74349038,93471.0,93470.0,0.0010854]
[1735510593980,2.28391958,93471.0,93470.0,0.0010854]
[1735510595066,2.33361958,93471.0,93470.0,0.0010854]
[1735510597455,2.35040683,93471.0,93470.0,0.0010854]
[1735510597857,2.67012869,93471.0,93470.0,0.0010854]
[1735510598882,2.35040683,93471.0,93470.0,0.0010854]
[1735510600126,2.34950881,93471.0,93470.0,0.0010854]
[1735510600330,2.35040953,93471.0,93470.0,0.0010854]
[1735510601363,2.25058013,93471.0,93470.0,0.0010854]
[1735510601578,2.21936377,93471.0,93470.0,0.0010854]
[1735510603138,2.21846305,93471.0,93470.0,0.0010854]
[1735510604244,2.2016758,93471.0,93470.0,0.0010854]
[1735510606435,2.1016758,93471.0,93470.0,0.0010854]
[1735510606795,2.2016758,93471.0,93470.0,0.0010854]
[1735510607106,2.30566212,93471.0,93470.0,0.0010854]
[1735510607641,2.32244901,93471.0,93470.0,0.0010854]
[1735510608446,0.099601,93465.0,93464.0,8.54e-05]
[1735510608687,1.474676,93465.0,93464.0,8.54e-05]
[1735510608958,0.099601,93465.0,93464.0,8.54e-05]
[1735510609172,0.65674202,93465.0,93464.0,8.54e-05]
[1735510609389,2.26192092,93465.0,93464.0,8.54e-05]
[1735510609741,2.26592092,93465.0,93464.0,8.54e-05]
[1735510609956,2.26192092,93465.0,93464.0,8.54e-05]
[1735510610645,2.26392092,93465.0,93464.0,8.54e-05]
[1735510611372,0.180001,93447.0,93446.0,8.53e-05]
[1735510611551,1.5830761,93447.0,93446.0,8.53e-05]
[1735510612032,1.59986526,93447.0,93446.0,8.53e-05]
[1735510612438,1.69986526,93447.0,93446.0,8.53e-05]
[1735510613398,1.59986526,93447.0,93446.0,8.53e-05]
[1735510613623,1.6830761,93447.0,93446.0,8.53e-05]
[1735510614026,1.56055822,93447.0,93446.0,8.53e-05]
[1735510614233,2.10098742,93447.0,93446.0,8.53e-05]
[1735510615451,2.10898742,93447.0,93446.0,8.53e-05]
[1735510615662,2.10098742,93447.0,93446.0,8.53e-05]
[1735510615851,2.10498742,93447.0,93446.0,8.53e-05]
[1735510616053,2.11398742,93447.0,93446.0,8.53e-05]
[1735510616189,2.10498742,93447.0,93446.0,8.53e-05]
[1735510616418,2.10498742,93447.0,93432.0,8.54e-05]
[1735510616419,0.1,93441.0,93432.0,8.54e-05]
[1735510616622,1.35248382,93440.0,93432.0,8.54e-05]
[1735510616852,1.335772,93439.0,93432.0,8.54e-05]
[1735510617058,0.0804,93438.0,93432.0,8.54e-05]
[1735510617224,1.335772,93437.0,93432.0,8.54e-05]
[1735510617682,1.335772,93437.0,93432.0,0.00023823]
[1735510617834,0.09277782,93436.0,93432.0,0.00023823]
[1735510618040,1.335772,93435.0,93432.0,0.00023823]
[1735510619318,1.342772,93435.0,93432.0,0.00023823]
[1735510619521,1.335772,93434.0,93432.0,0.00023823]
[1735510620521,1.35256328,93434.0,93432.0,0.00023823]
[1735510620888,1.335772,93433.0,93428.0,0.07660424]
[1735510621099,0.5403439,93432.0,93428.0,0.07660424]
[1735510621308,1.335772,93431.0,93428.0,0.07660424]
[1735510621648,0.18941662,93430.0,93428.0,0.07660424]
[1735510621854,1.114,93429.0,93428.0,0.07660424]
[1735510622241,0.18941662,93430.0,93428.0,0.07660424]
[1735510622644,0.18941662,93431.0,93428.0,0.07660424]
[1735510622854,0.005,93430.0,93428.0,0.07660424]
[1735510623289,0.18941662,93431.0,93428.0,0.07660424]
[1735510623459,0.18941662,93431.0,93430.0,0.1]
[1735510623656,0.002,93432.0,93430.0,0.1]
[1735510623871,0.002,93432.0,93431.0,0.1269]
[1735510624482,0.18941662,93433.0,93432.0,0.1]
[1735510624680,0.18941662,93433.0,93432.0,0.2219]
[1735510624952,0.18941662,93433.0,93432.0,0.2209]
[1735510625156,0.00015226,93434.0,93432.0,0.2209]
[1735510625157,0.00015226,93434.0,93433.0,0.0772]
[1735510625359,0.00015226,93434.0,93433.0,0.1712]
[1735510625516,0.00015226,93434.0,93433.0,0.24311]
[1735510625719,0.00015226,93434.0,93433.0,0.2209]
[1735510626119,0.06404357,93435.0,93434.0,0.1437]
[1735510626577,0.5403439,93469.0,93435.0,0.0497]
[1735510626578,0.18941662,93436.0,93435.0,0.0497]
[1735510627159,0.06131662,93436.0,93435.0,0.24768632]
[1735510627500,0.09485597,93439.0,93435.0,0.27246349]
[1735510627634,0.09485597,93439.0,93438.0,0.1437]
[1735510627831,0.09485597,93439.0,93438.0,0.24668632]
[1735510628439,0.23677078,93449.0,93448.0,0.092]
[1735510628641,0.09489719,93451.0,93450.0,0.092]
[1735510628843,0.09489719,93451.0,93450.0,0.21458495]
[1735510629386,0.01678554,93455.0,93450.0,0.21358495]
[1735510629603,0.01678554,93455.0,93451.0,0.0433]
[1735510629797,0.01678554,93455.0,93452.0,0.0752]
[1735510629977,0.01678554,93455.0,93454.0,0.09]
[1735510630750,0.05968254,93455.0,93454.0,0.09]
[1735510631382,0.05968254,93455.0,93454.0,0.089]
[1735510631661,0.06068254,93455.0,93454.0,0.089]
[1735510632083,0.06168254,93455.0,93454.0,0.095]
[1735510632325,0.06068254,93455.0,93454.0,0.095]
[1735510632681,0.06168254,93455.0,93454.0,0.1]
[1735510632887,0.06068254,93455.0,93454.0,0.094]
[1735510633227,0.06068254,93455.0,93454.0,0.095]
[1735510634006,0.043897,93455.0,93454.0,0.095]
[1735510634411,0.001,93455.0,93454.0,0.095]
[1735510634639,0.00090522,93459.0,93454.0,0.089]
[1735510635038,0.001,93455.0,93454.0,0.096]
[1735510635295,0.00090522,93459.0,93454.0,0.089]
[1735510635488,0.001,93455.0,93454.0,0.101]
[1735510635704,0.002,93455.0,93454.0,0.101]
[1735510635904,0.002,93455.0,93454.0,0.094]
[1735510636077,0.001,93455.0,93454.0,0.089]
[1735510636233,0.001,93455.0,93454.0,0.096]
[1735510636448,0.002,93455.0,93454.0,0.101]
[1735510637034,0.001,93455.0,93454.0,0.096]
[1735510637655,0.00090522,93459.0,93454.0,0.089]
[1735510638058,0.001,93455.0,93454.0,0.096]
[1735510638256,0.001,93455.0,93454.0,0.089]
[1735510638480,0.002,93455.0,93454.0,0.094]
[1735510638721,0.0031708,93455.0,93454.0,0.101]
[1735510638881,0.0011708,93455.0,93454.0,0.094]
[1735510639087,0.0011708,93455.0,93454.0,0.101]
[1735510639319,0.0021708,93455.0,93454.0,0.101]
[1735510640500,0.08329056,93479.0,93454.0,0.101]
[1735510640722,0.016784,93467.0,93455.0,0.03234863]
[1735510641128,0.016784,93467.0,93454.0,0.101]
[1735510641129,0.016784,93467.0,93456.0,0.089]
[1735510641355,1.335772,93466.0,93454.0,0.012]
[1735510641683,1.335772,93466.0,93450.0,0.089]
[1735510641881,1.175,93466.0,93450.0,0.089]
[1735510642186,1.174,93466.0,93450.0,0.089]
[1735510642466,0.989,93466.0,93456.0,0.005]
[1735510642685,0.882,93465.0,93456.0,0.005]
[1735510642820,0.969,93466.0,93454.0,0.003]
[1735510643022,1.072,93466.0,93454.0,0.003]
[1735510643230,1.073,93466.0,93450.0,0.094]
[1735510643413,1.294,93465.0,93450.0,0.089]
[1735510643615,0.445,93464.0,93450.0,0.089]
[1735510644075,0.977,93464.0,93450.0,0.089]
[1735510644281,0.964,93464.0,93450.0,0.089]
[1735510644442,0.777,93463.0,93450.0,0.089]
[1735510644638,0.701,93464.0,93450.0,0.089]
[1735510644843,0.765,93464.0,93450.0,0.089]
[1735510645273,0.717,93464.0,93450.0,0.089]
[1735510645454,0.717,93464.0,93450.0,0.09]
[1735510645656,0.12,93463.0,93450.0,0.09]
[1735510645858,0.245,93464.0,93450.0,0.09]
[1735510646264,0.2833784,93464.0,93450.0,0.09]
[1735510646535,0.245,93463.0,93450.0,0.09]
[1735510646735,0.12,93463.0,93450.0,0.089]
[1735510647508,0.01678512,93460.0,93450.0,0.089]
[1735510648552,0.01678512,93460.0,93450.0,0.092]
[1735510649195,0.01678512,93460.0,93450.0,0.091]
[1735510649598,0.01678512,93460.0,93450.0,0.092]
[1735510650273,0.01678512,93460.0,93450.0,0.0920853]
[1735510650671,0.01695572,93460.0,93450.0,0.0920853]
[1735510653553,0.01695572,93460.0,93450.0,0.0854984]
[1735510654156,0.0001706,93460.0,93450.0,0.0854984]
[1735510656376,0.0001706,93460.0,93459.0,0.0824131]
[1735510657167,0.0001706,93460.0,93459.0,0.26839942]
[1735510657737,0.0011706,93460.0,93459.0,0.27639942]
[1735510658063,0.0001706,93460.0,93459.0,0.26839942]
[1735510658418,0.0011706,93460.0,93459.0,0.27639942]
[1735510658647,0.0001706,93460.0,93459.0,0.29703936]
[1735510659026,0.0011706,93460.0,93459.0,0.30403936]
[1735510659425,0.0011706,93460.0,93459.0,0.31103936]
[1735510659426,0.0021706,93460.0,93459.0,0.31103936]
[1735510660464,0.0021706,93460.0,93459.0,0.35623936]
[1735510661825,0.0011706,93460.0,93459.0,0.34823936]
[1735510662024,0.0001706,93460.0,93459.0,0.34123936]
[1735510662186,0.0021706,93460.0,93459.0,0.35823936]
[1735510662382,0.0011706,93460.0,93459.0,0.32159942]
[1735510662881,0.0001706,93460.0,93459.0,0.31359942]
[1735510663255,0.0011706,93460.0,93459.0,0.27639942]
[1735510664353,0.0011706,93460.0,93459.0,0.28539942]
[1735510664876,0.0011706,93460.0,93459.0,0.0994131]
[1735510667399,0.0011706,93460.0,93459.0,0.10935441]
[1735510667757,0.0011706,93460.0,93459.0,0.0994131]
[1735510673710,0.11577275,93470.0,93459.0,0.0994131]
[1735510674024,0.11577275,93470.0,93467.0,0.0824131]
[1735510674235,0.01678376,93471.0,93467.0,0.0824131]
[1735510674236,0.23677078,93471.0,93467.0,0.0824131]
[1735510675060,0.001,93470.0,93467.0,0.0824131]
[1735510675341,0.28277078,93481.0,93467.0,0.0824131]
[1735510675553,0.001,93471.0,93467.0,0.0914131]
[1735510675777,0.001,93471.0,93467.0,0.0824131]
[1735510675980,0.042897,93469.0,93467.0,0.0824131]
[1735510677266,0.042897,93469.0,93467.0,0.0914131]
[1735510677691,0.042897,93469.0,93467.0,0.0824131]
[1735510677887,0.043897,93469.0,93467.0,0.0914131]
[1735510678289,0.043897,93469.0,93467.0,0.0974131]
[1735510678695,0.042897,93469.0,93467.0,0.006]
[1735510678834,0.042897,93469.0,93466.0,0.0824131]
[1735510679047,0.042897,93469.0,93467.0,0.006]
[1735510679257,0.042897,93469.0,93467.0,0.009]
[1735510680495,0.042897,93469.0,93467.0,0.0914131]
[1735510681039,0.042897,93469.0,93467.0,0.0854131]
[1735510681235,0.0814322,93469.0,93467.0,0.003]
[1735510681435,0.0492,93468.0,93456.0,0.0824131]
[1735510681651,0.0492,93468.0,93466.0,0.003]
[1735510682064,0.1435855,93468.0,93467.0,0.006]
[1735510682283,1.335772,93467.0,93453.0,0.0824131]
[1735510682768,1.335772,93467.0,93463.0,0.0824131]
[1735510683010,1.335772,93467.0,93464.0,0.0824131]
[1735510683129,1.259,93466.0,93464.0,0.0824131]
[1735510683328,1.233,93467.0,93464.0,0.0824131]
[1735510683611,0.19042384,93466.0,93464.0,0.0824131]
[1735510684443,0.19042384,93466.0,93450.0,0.0804853]
[1735510684646,0.19042384,93466.0,93454.0,0.0824131]
[1735510684847,0.0492,93468.0,93464.0,0.0834131]
[1735510684981,0.878,93467.0,93464.0,0.0834131]
[1735510685398,0.609,93467.0,93464.0,0.0834131]
[1735510685612,0.539,93467.0,93464.0,0.001]
[1735510685821,0.23797088,93465.0,93464.0,0.002]
[1735510686021,0.23797088,93465.0,93464.0,0.0834131]
[1735510686384,0.23797088,93465.0,93464.0,0.0824131]
[1735510687193,0.27097767,93465.0,93455.0,0.0824131]
[1735510687399,0.27097767,93465.0,93450.0,0.1628984]
[1735510687598,0.27097767,93465.0,93453.0,0.0824131]
[1735510687839,0.03300679,93465.0,93453.0,0.0824131]
[1735510688130,0.0216806,93467.0,93464.0,0.002]
[1735510688345,0.0752,93465.0,93464.0,0.002]
[1735510688699,0.0752,93465.0,93451.0,0.0824131]
[1735510688907,0.14277002,93457.0,93453.0,0.0824131]
[1735510690041,0.14277002,93454.0,93453.0,0.0824131]
[1735510691283,0.14277002,93454.0,93453.0,0.002]
[1735510691530,0.01678672,93454.0,93453.0,0.002]
[1735510691745,0.01678672,93454.0,93450.0,8.53e-05]
[1735510691880,0.01778672,93454.0,93453.0,0.008]
[1735510692106,0.09198672,93454.0,93453.0,0.002]
[1735510692343,0.59093676,93454.0,93453.0,0.008]
[1735510692763,0.59093676,93454.0,93453.0,0.006]
[1735510693189,0.35298672,93454.0,93453.0,0.006]
[1735510694274,0.3362,93454.0,93453.0,0.006]
[1735510694512,0.40320019,93454.0,93453.0,0.006]
[1735510695058,0.40320019,93454.0,93453.0,0.008]
[1735510695792,0.40220019,93454.0,93450.0,8.53e-05]
[1735510696033,1.335772,93453.0,93450.0,8.53e-05]
[1735510696449,0.0755,93452.0,93450.0,8.53e-05]
[1735510696588,1.335772,93451.0,93450.0,8.53e-05]
[1735510696787,1.36146985,93451.0,93450.0,8.53e-05]
[1735510697026,1.40926985,93451.0,93450.0,8.53e-05]
[1735510697233,1.50155958,93451.0,93450.0,8.53e-05]
[1735510698398,2.04290348,93451.0,93450.0,8.53e-05]
[1735510701351,2.14290348,93451.0,93450.0,8.53e-05]
[1735510701703,2.04290348,93451.0,93450.0,8.53e-05]
[1735510701909,2.14290348,93451.0,93450.0,8.53e-05]
[1735510702305,2.11720563,93451.0,93450.0,8.53e-05]
[1735510702568,2.01720563,93451.0,93450.0,8.53e-05]
[1735510704096,1.94170563,93451.0,93450.0,8.53e-05]
[1735510704309,1.9249159,93451.0,93450.0,8.53e-05]
[1735510705323,1.9249159,93451.0,93429.0,0.01582627]
[1735510705471,1.335772,93450.0,93429.0,0.01582627]
[1735510705872,0.0755,93449.0,93429.0,0.01582627]
[1735510706070,1.335772,93448.0,93429.0,0.01582627]
[1735510706278,0.1233,93447.0,93429.0,0.01582627]
[1735510706481,0.14213594,93441.0,93429.0,0.01582627]
[1735510706700,1.335772,93440.0,93429.0,0.01582627]
[1735510707024,1.335772,93440.0,93429.0,0.02719259]
[1735510707261,0.14213594,93441.0,93436.0,0.0824131]
[1735510707459,0.01678961,93440.0,93436.0,0.0824131]
[1735510707674,0.14213594,93439.0,93436.0,0.0824131]
[1735510707825,0.14213594,93439.0,93438.0,0.0824131]
[1735510708655,0.01678961,93440.0,93438.0,0.0824131]
[1735510708835,0.01678961,93440.0,93438.0,0.0844131]
[1735510710042,0.01678961,93440.0,93438.0,0.0854131]
[1735510710286,0.01678961,93440.0,93438.0,0.0834131]
[1735510710486,0.01678961,93440.0,93433.0,0.0764181]
[1735510710683,0.01678961,93440.0,93433.0,0.0674281]
[1735510710888,0.01678961,93440.0,93438.0,0.001]
[1735510711311,0.18360521,93448.0,93438.0,0.004]